Workbook

Sheet Прайс-лист
F1: УТВЕРЖДАЮ | K1: Стоимость за 1000
F2: Директор общества | K2: 1.5
F3: с ограниченной ответственностью «Квитки Бел» | K3: Просмотров в день
F4: __________________ А. Касинский | K4: 44500
F5: 2019-11-20 | K5: Подписчиков email
K6: 300000
B7: Прейскурант №22 для организаторов мероприятий
B9: № | C9: Название | D9: Единиц | E9: Формат, размер, px | F9: Охват, пользователей | G9: Цена без НДС, руб. | H9: НДС,по ставке 20% | I9: Итого с НДС, руб. | J9: коэф.
B10: Сайт KVITKI BY
B11: 1 | C11: Закрепление в блоке "Рекомендуем" ГЛАВНАЯ | D11: 1 день | E11: Закрепление мероприятия на Главной странице | F11: =K4*0.15 -> 6675 | G11: 30 | H11: =Таблица3[[#This Row],[Столбец7]]*20% -> 6 | I11: =Таблица3[[#This Row],[Столбец7]]+Таблица3[[#This Row],[Столбец9]] -> 36 | J11: 3 | K11: Посмотреть расположение
B12: 2 | C12: Закрепление в блоке "Рекомендуем" ТЕАТР | D12: 3 дня | E12: Закрепление мероприятия в категории Театр (на 3 дня) | F12: =K4*0.03 -> 1335 | G12: 35 | H12: =Таблица3[[#This Row],[Столбец7]]*20% -> 7 | I12: =Таблица3[[#This Row],[Столбец7]]+Таблица3[[#This Row],[Столбец9]] -> 42 | J12: 5.8 | K12: Посмотреть расположение
B13: 3 | C13: Закрепление в блоке "Рекомендуем" МУЗЫКА | D13: 3 дня | E13: Закрепление мероприятия в категории Музыка (на 3 дня) | F13: =K4*0.025 -> 1113 | G13: 30 | H13: =Таблица3[[#This Row],[Столбец7]]*20% -> 6 | I13: =Таблица3[[#This Row],[Столбец7]]+Таблица3[[#This Row],[Столбец9]] -> 36 | J13: 5.8 | K13: Посмотреть расположение
B14: 4 | C14: Баннер "Header" ГЛАВНАЯ | D14: 1 день | E14: Размещение баннера 1317x319 на Главной странцие | F14: =K4*0.22 -> 9790 | G14: 40 | H14: =Таблица3[[#This Row],[Столбец7]]*20% -> 8 | I14: =Таблица3[[#This Row],[Столбец7]]+Таблица3[[#This Row],[Столбец9]] -> 48 | J14: 2.7 | K14: Посмотреть расположение
B15: 5 | C15: Баннер "Header" ТЕАТР | D15: 3 дня | E15: Размещение баннера 1317x319 в категории Театр (на 3 дня) | F15: =K4*0.04 -> 1780 | G15: 60 | H15: =Таблица3[[#This Row],[Столбец7]]*20% -> 12 | I15: =Таблица3[[#This Row],[Столбец7]]+Таблица3[[#This Row],[Столбец9]] -> 72 | J15: 7.5 | K15: Посмотреть расположение
B16: 6 | C16: Баннер "Header" МУЗЫКА | D16: 3 дня | E16: Размещение баннера 1317x319 в категории Музыка (на 3 дня) | F16: =K4*0.027 -> 1202 | G16: 40 | H16: =Таблица3[[#This Row],[Столбец7]]*20% -> 8 | I16: =Таблица3[[#This Row],[Столбец7]]+Таблица3[[#This Row],[Столбец9]] -> 48 | J16: 7.5 | K16: Посмотреть расположение
B17: 7 | C17: Баннер-полоска в категории ВСЕ | D17: 3 дня | E17: Баннер 1066x107 в категории Все (на 3 дня) | F17: =K4*0.02 -> 890 | G17: 20 | H17: =Таблица3[[#This Row],[Столбец7]]*20% -> 4 | I17: =Таблица3[[#This Row],[Столбец7]]+Таблица3[[#This Row],[Столбец9]] -> 24 | J17: 4.5 | K17: Посмотреть расположение
B18: 8 | C18: Баннер-полоска в категории ТЕАТР | D18: 3 дня | E18: Баннер 1066x107 в категории Театр (на 3 дня) | F18: =K4*0.019 -> 846 | G18: 20 | H18: =Таблица3[[#This Row],[Столбец7]]*20% -> 4 | I18: =Таблица3[[#This Row],[Столбец7]]+Таблица3[[#This Row],[Столбец9]] -> 24 | J18: 4.5 | K18: Посмотреть расположение
B19: 9 | C19: Баннер-полоска в категории МУЗЫКА | D19: 3 дня | E19: Баннер 1066x107 в категории Музыка (на 3 дня) | F19: =K4*0.015 -> 668 | G19: 15 | H19: =Таблица3[[#This Row],[Столбец7]]*20% -> 3 | I19: =Таблица3[[#This Row],[Столбец7]]+Таблица3[[#This Row],[Столбец9]] -> 18 | J19: 4.8 | K19: Посмотреть расположение
B20: 10 | C20: Баннер-полоска в категории КЛУБ | D20: 3 дня | E20: Баннер 1066x107 в категории Клуб (на 3 дня) | F20: =K4*0.012 -> 534 | G20: 15 | H20: =Таблица3[[#This Row],[Столбец7]]*20% -> 3 | I20: =Таблица3[[#This Row],[Столбец7]]+Таблица3[[#This Row],[Столбец9]] -> 18 | J20: 4.8 | K20: Посмотреть расположение
B21: 11 | C21: Всплывающее окно при открытии сайта | D21: 1 день | E21: Баннер 500x500 при открытии любой страницы сайта | F21: =K4*0.7 -> 31150 | G21: 80 | H21: =Таблица3[[#This Row],[Столбец7]]*20% -> 16 | I21: =Таблица3[[#This Row],[Столбец7]]+Таблица3[[#This Row],[Столбец9]] -> 96 | J21: 1.7 | K21: Посмотреть расположение
B22: 12 | C22: Бегущая строка на всех страницах сайта | D22: 1 день | E22: Бегущая строка 800x35 на всех страницах сайта | F22: =K4*1 -> 44500 | G22: 90 | H22: =Таблица3[[#This Row],[Столбец7]]*20% -> 18 | I22: =Таблица3[[#This Row],[Столбец7]]+Таблица3[[#This Row],[Столбец9]] -> 108 | J22: 1.3 | K22: Посмотреть расположение
B23: 13 | C23: Размещение материала в рубрике новостей | D23: 1 шт. | E23: Материал в новостях с закреплением на главной | F23: =K4*0.08 -> 3560 | G23: 30 | H23: =Таблица3[[#This Row],[Столбец7]]*20% -> 6 | I23: =Таблица3[[#This Row],[Столбец7]]+Таблица3[[#This Row],[Столбец9]] -> 36 | J23: 5 | K23: Посмотреть расположение
B24: Сайт TEATR BY
B25: 14 | C25: Баннер "Header" ГЛАВНАЯ | D25: 1 день | E25: Размещение баннера 1317x319 на Главной странцие | F25: =K4*0.22 -> 9790 | G25: 40 | H25: =G25*20% -> 8 | I25: =G25+H25 -> 48 | J25: 3 | K25: Посмотреть расположение
B26: 15 | C26: Закрепление в блоке "Рекомендуем" ГЛАВНАЯ | D26: 1 день | E26: Закрепление мероприятия на Главной странице | F26: =K4*0.15 -> 6675 | G26: 60 | H26: =G26*20% -> 12 | I26: =G26+H26 -> 72 | J26: 5.8 | K26: Посмотреть расположение
B27: 16 | C27: Блок театра на ГЛАВНОЙ | D27: 1 день | E27: Закрепление 5 мероприятий на Главной станице | F27: =K4*0.025 -> 1113 | G27: =F27/1000*J27*K2 -> 10 | H27: 2 | I27: 12 | J27: 5.8 | K27: Посмотреть расположение
B28: 17 | C28: Всплывающее окно при открытии сайта | D28: 1 день | E28: Баннер 500x500 при открытии любой страницы сайта | F28: =K4*0.7 -> 31150 | G28: 80 | H28: 16 | I28: 96 | J28: 1.7 | K28: Посмотреть расположение
B29: 18 | C29: Бегущая строка на всех страницах сайта | D29: 1 день | E29: Бегущая строка 800x35 на всех страницах сайта | F29: =K4*1 -> 44500 | G29: 90 | H29: 18 | I29: 108 | J29: 1.3 | K29: Посмотреть расположение
B30: Социальные сети vk.com/kvitkiby, facebook.com/kvitki.by, ok.ru/kvitkiby, twitter.com/kvitkiby
B31: 19 | C31: Пост на vk.com, facebook.com, ok.ru, twitter.com | D31: 1 шт. | E31: Пост во всех соц.сообществах kvitki.by | F31: 17000 | G31: 30 | H31: =Таблица4[[#This Row],[Столбец7]]*20% -> 6 | I31: =Таблица4[[#This Row],[Столбец7]]+Таблица4[[#This Row],[Столбец9]] -> 36 | J31: 1.2 | K31: Сообщество vk.com
B32: 20 | C32: Пост в соц.сетях с закреплением | D32: 1 день | E32: Пост в сообществах с закреплением вверху | F32: 25000 | G32: 40 | H32: =Таблица4[[#This Row],[Столбец7]]*20% -> 8 | I32: =Таблица4[[#This Row],[Столбец7]]+Таблица4[[#This Row],[Столбец9]] -> 48 | J32: 1.1 | K32: Сообщество facebook.com
B33: 21 | C33: Проведение розыгрыша на vk.com | D33: 1 неделя | E33: Запуск, поддержка и проведение розыгрыша | F33: 35000 | G33: 50 | H33: =Таблица4[[#This Row],[Столбец7]]*20% -> 10 | I33: =Таблица4[[#This Row],[Столбец7]]+Таблица4[[#This Row],[Столбец9]] -> 60 | J33: 1 | K33: Сообщество instagram.com
B34: 22 | C34: Пакет из 5 постов в соц.сетях + розыгрыш на vk.com | D34: 1 шт. | E34: Пакет постов + проведение розыгрыша | F34: =F31*5+F33 -> 120000 | G34: 120 | H34: =Таблица4[[#This Row],[Столбец7]]*20% -> 24 | I34: =Таблица4[[#This Row],[Столбец7]]+Таблица4[[#This Row],[Столбец9]] -> 144 | J34: 0.7 | K34: Сообщество twitter.com
B35: Е-mail рассылка
B36: 23 | C36: E-mail рассылка на 310 000 адресов | D36: 1 шт. | E36: Эксклюзивная рассылка на всю базу подписчиков | F36: =K6 -> 300000 | G36: 520 | H36: =Таблица5[[#This Row],[Столбец7]]*20% -> 104 | I36: =Таблица5[[#This Row],[Столбец7]]+Таблица5[[#This Row],[Столбец5]] -> 624 | J36: 2 | K36: Посмотреть пример
B37: 24 | C37: E-mail рассылка на 310 000 адресов в подборке | D37: 1 шт. | E37: Рассылка в подборке из мероприятий на всю базу подписчиков | F37: =K6 -> 300000 | G37: 160 | H37: =Таблица5[[#This Row],[Столбец7]]*20% -> 32 | I37: =Таблица5[[#This Row],[Столбец7]]+Таблица5[[#This Row],[Столбец5]] -> 192 | J37: 0.6 | K37: Посмотреть пример
B38: Оффлайн реклама
B39: 25 | C39: Размещение афиши А0 в переходе ГУМ-Макдональдс | D39: 1 неделя | E39: Афиша А0 на стендах фирменной кассы | F39: 200000 | G39: =F39/1000*J39*K2 -> 120 | H39: =Таблица6[[#This Row],[Столбец7]]*20% -> 24 | I39: =Таблица6[[#This Row],[Столбец7]]+Таблица6[[#This Row],[Столбец5]] -> 144 | J39: 0.4
B40: 26 | C40: Размещение афиши А3 в переходе ГУМ-Макдональдс | D40: 1 неделя | E40: Афиша А3 на стендах фирменной кассы | F40: 150000 | G40: 70 | H40: =Таблица6[[#This Row],[Столбец7]]*20% -> 14 | I40: =Таблица6[[#This Row],[Столбец7]]+Таблица6[[#This Row],[Столбец5]] -> 84 | J40: 0.3
B41: 27 | C41: Размещение афиши А4 в переходе ГУМ-Макдональдс | D41: 1 неделя | E41: Афиша А4 на стендах фирменной кассы | F41: 120000 | G41: 60 | H41: =Таблица6[[#This Row],[Столбец7]]*20% -> 12 | I41: =Таблица6[[#This Row],[Столбец7]]+Таблица6[[#This Row],[Столбец5]] -> 72 | J41: 0.3
B42: 28 | C42: Размещение 140 афиш А3 в сети салонов "Евросеть" РБ | D42: 1 неделя | E42: Афиши А3 в салонах по всей РБ по согласованию с "Евросеть" | F42: 90000 | G42: 110 | H42: =Таблица6[[#This Row],[Столбец7]]*20% -> 22 | I42: =Таблица6[[#This Row],[Столбец7]]+Таблица6[[#This Row],[Столбец5]] -> 132 | J42: 0.8
B43: 29 | C43: Блок заголовка на фирменном термобилете, 1000 шт. | D43: 1 шт. | E43: Текст, ч/б изображение, 850x250 | F43: 1000 | G43: 30 | H43: =Таблица6[[#This Row],[Столбец7]]*20% -> 6 | I43: =Таблица6[[#This Row],[Столбец7]]+Таблица6[[#This Row],[Столбец5]] -> 36 | J43: 18
B44: 30 | C44: Рекламный блок на фирменном термобилете, 1000 шт. | D44: 1 шт. | E44: Текст, ч/б изображение, 200x200 | F44: 1000 | G44: 20 | H44: =Таблица6[[#This Row],[Столбец7]]*20% -> 4 | I44: =Таблица6[[#This Row],[Столбец7]]+Таблица6[[#This Row],[Столбец5]] -> 24 | J44: 13
B45: 31 | C45: Рекламный блок на е-квитке А4 | D45: 1 неделя | E45: Текст, изображение, 900x600 | F45: 1000 | G45: 50 | H45: =Таблица6[[#This Row],[Столбец7]]*20% -> 10 | I45: =Таблица6[[#This Row],[Столбец7]]+Таблица6[[#This Row],[Столбец5]] -> 60 | J45: 35
B46: Реклама в интернете
B47: 32 | C47: Создание и ведение рекламной кампании в интернете | D47: 1 месяц | E47: Запуск, ведение, статистика рекламы в интернете (бюджет от $150) | F47: 500 000 + | G47: 120 | H47: =G47*20% -> 24 | I47: =G47+H47 -> 144
B48: 33 | C48: Использование списков ретаргетинга сайта для рекламы | D48: 1 месяц | E48: Преследование посетителей нашего сайта | F48: 500 000 + | G48: 120 | H48: =G48*20% -> 24 | I48: =G48+H48 -> 144
B49: 34 | C49: Сопровождение рекламной кампании | D49: 1 месяц | E49: Сопровождение документооборота рекламы в интернете | F49: 10000 | G49: 25 | H49: =G49*20% -> 5 | I49: 30
B50: Тарифные планы на размещение мероприятий см. далее
B51: 35 | C51: Тарифный план FREE | D51: 1 шт. | E51: Комплексный набор рекламных услуг | G51: 0 | H51: =G51*20% -> 0 | I51: =G51+H51 -> 0
B52: 36 | C52: Тарифный план START на 1 неделю | D52: 1 шт. | E52: Комплексный набор рекламных услуг | G52: 70 | H52: =G52*20% -> 14 | I52: =G52+H52 -> 84
B53: 37 | C53: Тарифный план STANDART на 1 неделю | D53: 1 шт. | E53: Комплексный набор рекламных услуг | G53: 120 | H53: =G53*20% -> 24 | I53: =G53+H53 -> 144
B54: 38 | C54: Тарифный план VIP на 1 неделю | D54: 1 шт. | E54: Комплексный набор рекламных услуг | G54: 170 | H54: 34 | I54: 204
B55: 39 | C55: Тарифный план START на 2 недели | D55: 1 шт. | E55: Комплексный набор рекламных услуг | G55: 140 | H55: 28 | I55: 168
B56: 40 | C56: Тарифный план STANDART на 2 недели | D56: 1 шт. | E56: Комплексный набор рекламных услуг | G56: 240 | H56: 48 | I56: 288
B57: 41 | C57: Тарифный план VIP на 2 недели | D57: 1 шт. | E57: Комплексный набор рекламных услуг | G57: 340 | H57: 68 | I57: 408
B58: Основные услуги компании
B59: 42 | C59: Размер вознаграждения комиссионера от стоимости каждого реализованного билета | I59: 0.12
B60: 43 | C60: Первичная обработка информации о мероприятии, ввод реквизитов организатора в базу данных * | G60: 25 евро | H60: 5 евро | I60: 30 евро
B61: 44 | C61: Обработка информации для системы о мероприятии (ввод мероприятий) * | G61: 16,5 евро | H61: 3,3 евро | I61: 20 евро
B62: 45 | C62: Услуга формирование электронных пригласительных билетов в рамках одного мероприятия * | G62: 8,33 евро | H62: 1,67 евро | I62: 10 евро
B63: 46 | C63: Стоимость печати одного термо-бланка | G63: 0.42 | H63: =Таблица1[[#This Row],[Столбец6]]*20% -> 0.08 | I63: =Таблица1[[#This Row],[Столбец6]]+Таблица1[[#This Row],[Столбец7]] -> 0.5
B64: Услуги контроля
B65: 47 | C65: Осуществление сканирования билетов (1 сотрудник+1 ед оборудования) | D65: 1 час | G65: 12.5 | H65: =G65*20% -> 2.5 | I65: =G65+H65 -> 15
B66: 48 | C66: Аренда 1 ед оборудования для сканирования билетов | D66: 1 час | G66: 7 | H66: =G66*20% -> 1.4 | I66: =G66+H66 -> 8.4
B67: 49 | C67: Обслуживание мобильной кассы +терминал (1 сотрудник +1 комплект оборудования)** | D67: 1 час | G67: 33.33 | H67: 6.67 | I67: 40
B69: * - Оплата производится в белорусских рублях по курсу Национального банка Республики Беларусь на дату формирования акта выполненных работ.
B70: ** - Продажа билетов отражается в системе, стоимость билета соответствует стоимости на сайте KVITKI BY, мин время аренды - 3 часа

Sheet Тарифные планы
B1: Тарифные планы на комплексную рекламную поддержку
B3: FREE | E3: START | H3: STANDART | K3: VIP
E4: 2 недели | H4: 2 недели | K4: 2 недели
B5: 0 руб. | E5: 168 руб.* | H5: 288 руб.* | K5: 408 руб.*
B6: Анонс в соц.сетях при запуске мероприятия*** | C6: 1 шт. | E6: Позиции тарифа FREE | F6: все | H6: Позиции тарифа FREE | I6: все | K6: Позиции тарифа FREE | L6: все
B7: Установка ссылки на afisha.tut.by | C7: 1 шт. | E7: Закрепление "Рекомендуем" в категории | F7: 4 дня | H7: Закрепление "Рекомендуем" на Главной | I7: 4 дня | K7: Закрепление "Рекомендуем" на Главной | L7: 8 дней
B8: Установка баннера на билеты | C8: 1 шт. | E8: Баннер "Header" в категории | F8: 4 дня | H8: Закрепление "Рекомендуем" в категории | I8: 4 дня | K8: Закрепление "Рекомендуем" в категории | L8: 6 дней
B9: Интеграция продажи на сайт организатора | C9: 1 шт. | E9: Баннер-полоска в категории | F9: 4 дня | H9: Баннер "Header" на Главной | I9: 2 дня | K9: Баннер "Header" на Главной | L9: 4 дня.
B10: Генерация промо-кодов для скидок | C10: 1 шт. | E10: Пост-напоминание в соц. сетях | F10: 1 день | H10: Баннер "Header" в категории "ВСЕ" | I10: 2 дня | K10: Баннер "Header" в категории "ВСЕ" | L10: 4 дня
B11: Приложение контроля билетов** | C11: 1 шт. | E11: Розыгрыш в соц. сетях | F11: 1 шт. | H11: Баннер "Header" в категории | I11: 4 дня | K11: Баннер "Header" в категории | L11: 6 дней
B12: Интеграция приложения в группу VK.COM | C12: 1 шт. | H12: Баннер-полоска в категории "ВСЕ" | I12: 2 дня | K12: Баннер-полоска в категории "ВСЕ" | L12: 4 дня
H13: Баннер-полоска в категории | I13: 4 дня | K13: Баннер-полоска в категории | L13: 6 дней
H14: Размещение новости на Главной | I14: 1 день | K14: Размещение новости на Главной | L14: 1 день
H15: Пост-напоминание в соц. сетях | I15: 1 шт. | K15: Пост-напоминание в соц. сетях | L15: 2 шт.
H16: Розыгрыш в соц. сетях | I16: 1 шт. | K16: Розыгрыш в соц. сетях | L16: 1 шт.
H17: Бегущая строка на всех страницах сайта | I17: 1 день | K17: Бегущая строка на всех страницах сайта | L17: 2 дня
K18: Всплывающее окно при открытии сайта | L18: 2 дня
B19: СКИДКА НА ДРУГИЕ ПОЗИЦИИ ПРАЙСА | C19: 0 | E19: СКИДКА НА ДРУГИЕ ПОЗИЦИИ ПРАЙСА | F19: 0.1 | H19: СКИДКА НА ДРУГИЕ ПОЗИЦИИ ПРАЙСА | I19: 0.2 | K19: СКИДКА НА ДРУГИЕ ПОЗИЦИИ ПРАЙСА | L19: 0.3
B21: * - цена в бел.руб. без учета НДС
B22: ** - информация о приложении на сайте: http://www.kvitki.by/rus/obshaja-informacija/organizatoram/prilozhenie-kontrolia/
B23: *** - при наличии свободных мест

Sheet Примеры Баннеров
A1: Расположение позиций на Главной | M1: Расположение позиций в Категориях
A87: Бегущая строка

Sheet Примеры Рассылок
A1: Эксклюзивная рассылка | I1: Рассылка из 3 позиций | Q1: Рассылка из 7 позиций

Sheet Контакты
A1: Реквизиты компании | I1: Отдел маркетинга | Q1: Для организаторов мероприятий
A2: ООО "Квитки Бел" 220030, г. Минск, ул. Зыбицкая, д.9 пом. 39 тел/факс: + 375 17 293 03 74 УНП: 191295928 ОКПО: 379037315000 р/с BY88 UNBS 3012 0466 4000 9000 0933 в ЗАО «БСБ Банк», код UNBSBY2X, адрес банка: пр-т Победителей, 23, корп.3, г. Минск, РБ, Свидетельство о регистрации №191295928 выдано 29.01.2010 Минским горисполкомом | I2: E-mail: marketing@kvitki.by, Тел. +375(17) 293-03-74, Режим работы: Пн- Пт. с 9.00 до 18.00, Сб, Вс - выходные. Кристина Малаховская: +375(29) 199-07-01, Илья Люлькович: +375(29) 199-46-52 | Q2: Для организаторов в Минске: Марина, marina.adamovich@kvitki.by, +375(29) 130-09-55, Режим работы: Пн- Пт. с 9.00 до 18.00, Сб, Вс - выходные. Для организаторов из областных центров: Вера, vera.brishten@kvitki.by, +375(29) 199-12-76, Режим работы: Пн- Пт. с 9.00 до 18.00, Сб, Вс - выходные.
